Cogmind - Beta 17 @@@ ROGUE MODE // 2026.07.20 @ 20:04:57 Player: Ry645 Result: Smashed by cave-in Performance ------------- Evolutions (0) 0 Regions Visited (1) 200 Robots Destroyed (8) 40 Value Destroyed (182) 182 Prototype IDs (4) 80 Alien Tech Used (0) 0 Bonus (0) 0 TOTAL SCORE: 502 Bonus ------- None Cogmind --------- Core Integrity 0/250 Matter 232/300 Energy 250/250 System Corruption 9% Temperature Cool (26) Movement Walking (190) Ox1 Location -10/Materials Parts ------- > --- POWER (1) -------- Ion Engine > --- PROPULSION (2) --- Aluminum Leg > --- UTILITY (2) ------ Small Storage Unit > --- WEAPON (2) ------- EM Pulse Gun > --- INVENTORY (8) ---- Ion Engine Ion Engine Aluminum Leg Wheel Compact Wheel EM Pulse Gun Assault Rifle Grenade Launcher Peak State ------------ > --- POWER ------------ Ion Engine > --- PROPULSION ------- Aluminum Leg Aluminum Leg > --- UTILITY ---------- Small Storage Unit > --- WEAPON ----------- EM Pulse Gun Assault Rifle > --- INVENTORY -------- Ion Engine Wheel Compact Wheel EM Pulse Gun [Rating: 6] Favorites ----------- Power Ion Engine Engine Ion Engine Propulsion Aluminum Leg Leg Aluminum Leg Utility Small Storage Unit Storage Small Storage Unit Weapon EM Pulse Gun Energy Gun EM Pulse Gun Ballistic Gun Assault Rifle Launcher Grenade Launcher Special Weapon Mining Laser Build | -11 -10 ------- Run | Yrd Mat Slots Evolved . | . . Power . | . . Propulsion . | . . Utility . | . . Weapon . | . . Parts Attached 8 | 7 1 Power 1 | 1 . Engine 1 | 1 . Core . | . . Reactor . | . . Propulsion 2 | 2 . Treads . | . . Leg 2 | 2 . Wheel . | . . Hover . | . . Flight . | . . Utility 1 | 1 . Device . | . . Storage 1 | 1 . Processor . | . . Hackware . | . . Protection . | . . Artifact . | . . Weapon 4 | 3 1 Energy Gun 1 | 1 . Energy Cannon . | . . Ballistic Gun 1 | 1 . Ballistic Cannon . | . . Launcher 1 | . 1 Special Weapon 1 | 1 . Impact Weapon . | . . Slashing Weapon . | . . Piercing Weapon . | . . Special Melee Weapon . | . . Unidentified Prototypes . | . . Parts Lost 2 | . 2 Power . | . . Propulsion 1 | . 1 Utility . | . . Weapon 1 | . 1 Highest Loss Streak 2 | . 2 To Critical Strikes . | . . Average Backups 5 | 4 6 Power 1 | . 1 Propulsion 2 | 1 2 Utility . | . . Weapon 2 | 1 2 Tool/Special . | . . Unused Backups 6 | . 6 Power 2 | . 2 Propulsion 3 | . 3 Utility . | . . Weapon 1 | . 1 Tool/Special . | . . Average Slot Usage (%) 85 | . 85 Engine 14 | . 14 Leg 28 | . 28 Storage 14 | . 14 Energy Gun 12 | . 12 Ballistic Gun 12 | . 12 Launcher 1 | . 1 Special Weapon 1 | . 1 Peak Build Rating 6 | 6 6 Average Rating 5 | 4 5 On Entrance 3 | . 6 Avg Prop Armor Cover (%) . | . . Naked Turns . | . . Heaviest Build 15 | 14 15 Greatest Support 20 | 20 20 Greatest Overweight (x) . | . . Average Overweight (x) . | . . Largest Inventory Capacity 8 | 8 8 Average Capacity 7 | 6 8 Most Carried 8 | 5 8 Average Carried 5 | 4 6 Final Capacity 8 | 8 8 Final Carried 8 | 5 8 Class Distribution -------------------- 100% | Mutant Dominant Class ---------------- Mutant | -10/Materials Resources | -11 -10 ----------- Run | Yrd Mat Matter Collected 311 | 292 19 Remotely . | . . Salvage Created 287 | 125 162 Parts 16 | 6 10 Haulers Intercepted 1 | . 1 Recyclers Shooed 1 | . 1 Parts Field Recycled . | . . Retrieved Matter . | . . Parts Self-Destructed . | . . Prevented . | . . Parts Restored . | . . Kills | -11 -10 ------- Run | Yrd Mat Combat Hostiles Destroyed 4 | . 4 Guns 1 | . 1 AOE 3 | . 3 Classes Destroyed 5 | 3 2 Worker 1 | 1 . Tunneler 1 | 1 . Hauler 1 | . 1 Recycler 1 | 1 . Grunt 4 | . 4 Best Kill Streak 3 | 1 3 Combat Bots Only 3 | . 3 Max Kills in Single Turn 2 | 1 2 Gunslinging . | . . Exploded 1 | . 1 Melee . | . . Uniques/NPCs Destroyed . | . . Combat | -11 -10 -------- Run | Yrd Mat Hostile Shots Fired 12 | . 12 Missed 6 | . 6 Hits 6 | . 6 Projectile 6 | . 6 Damage Taken 650 | . 650 Core 268 | . 268 Absorbed by Shields . | . . Core Remaining (%) 100 | 100 . Volleys Fired 23 | 8 15 Largest 2 | 2 2 Hottest 140 | 140 140 Shots Fired 41 | 16 25 Gun 27 | 12 15 Cannon . | . . Launcher 4 | . 4 Special 10 | 4 6 Kinetic 13 | 4 9 Thermal 10 | 4 6 Explosive 4 | . 4 Electromagnetic 14 | 8 6 Robot Hit Streak 7 | 6 7 Robot Miss Streak 2 | . 2 Penetration Max . | . . Secondary Targets . | . . Shots Hit Robots 13 | 6 7 Core Hits 12 | 4 8 Critical Kills . | . . Critical Parts Destroyed . | . . Critical Strikes . | . . Melee Attacks . | . . Impact . | . . Slashing . | . . Piercing . | . . Sneak Attacks . | . . Combat Hostiles . | . . Follow-up Attacks . | . . Damage Inflicted 382 | 78 304 Guns 142 | 78 64 Cannons . | . . Explosions 240 | . 240 Melee . | . . Ramming . | . . Kinetic 63 | 25 38 Thermal 37 | . 37 Explosive 167 | . 167 Electromagnetic 115 | 53 62 Impact . | . . Slashing . | . . Piercing . | . . Highest Corruption . | . . Average Corruption . | . . Corruption Purged . | . . Corruption Blocked . | . . Overload Shots . | . . Overflow Damage . | . . Projectiles . | . . Explosions . | . . Melee . | . . Knockbacks . | . . Impact . | . . Kinetic . | . . Secondary . | . . Self-Inflicted Damage . | . . Shots . | . . Rammed . | . . Targets Rammed . | . . Kicked . | . . Crushed . | . . Highest Temperature 124 | 124 42 Average Temperature 38 | 63 19 Received Heat Transfer 36 | . 36 Siege Activations . | . . Martial Activations . | . . Shielding Activations . | . . Robots Disrupted . | . . Combat Hostiles . | . . Robots Corrupted . | . . Combat Hostiles . | . . Parts Fried . | . . Impact Corruptions . | . . Robots Melted . | . . Combat Hostiles . | . . Parts Melted . | . . Heat Transferred 50 | . 50 Parts Sabotaged . | . . Parts Stolen . | . . Parts Stripped . | . . Power Chain Reactions 1 | . 1 Alert | -11 -10 ------- Run | Yrd Mat Maximum Alert Level . | . . Low Security (%) 100 | 100 100 Level 1 . | . . Level 2 . | . . Level 3 . | . . Level 4 . | . . Level 5 . | . . High Security . | . . Max Security . | . . Peak Influence 150 | 5 150 Initial . | . . Average 31 | . 51 Influence Increases 228 | 15 213 Destroy 0b10 Robot/C 80 | . 80 Destroy 0b10 Robot/NC 20 | 15 5 Destroy Leader 22 | . 22 Successful Hack 22 | . 22 Disable Machine 45 | . 45 Destroy Structure 39 | . 39 Influence Decreases 137 | 15 122 Time Decay 117 | 15 102 Lost Part 20 | . 20 Squads Dispatched 2 | . 2 Investigation 1 | . 1 Extermination . | . . Reinforcement 1 | . 1 Assault . | . . Garrison . | . . Intercept . | . . Searches Triggered . | . . Construction Impeded . | . . Haulers Reinforced . | . . Active Scanning Responses . | . . Cargo Convoy Interrupts . | . . Stealth | -11 -10 --------- Run | Yrd Mat Distress Signals . | . . Communications Jammed . | . . Distress Signals . | . . Times Spotted 4 | . 4 Peak Tracking Total 2 | . 2 Tactical Retreats . | . . Traps | -11 -10 ------- Run | Yrd Mat Traps Triggered 1 | . 1 Indirectly . | . . Trap Hack Attempts . | . . Triggered . | . . Disarmed . | . . Reprogrammed . | . . Reused . | . . Traps Extracted . | . . Installed . | . . Triggered . | . . Machines | -11 -10 ---------- Run | Yrd Mat Machines Disabled 3 | . 3 Max in Single Turn 2 | . 2 Machines Repaired . | . . Machines Dismantled . | . . Machines Sabotaged . | . . Overloaded Fab Kills . | . . Hacking | -11 -10 --------- Run | Yrd Mat Machines Accessed 4 | . 4 Terminals 4 | . 4 Fabricators . | . . Repair Stations . | . . Recycling Units . | . . Scanalyzers . | . . Garrison Access . | . . Total Hacks 13 | . 13 Successful 9 | . 9 Failed 4 | . 4 Catastrophic 2 | . 2 Database Lockouts . | . . Manual . | . . Terminals 13 | . 13 Fabricators . | . . Repair Stations . | . . Recycling Units . | . . Scanalyzers . | . . Garrison Access . | . . Terminal Hacks 9 | . 9 Record 2 | . 2 Prototype ID Bank 2 | . 2 Alert Level 1 | . 1 Dispatch Records 2 | . 2 Hauler Manifests 1 | . 1 Registered Components 1 | . 1 Fabricator Hacks . | . . Repair Station Hacks . | . . Recycling Unit Hacks . | . . Scanalyzer . | . . Garrison Access Hacks . | . . Unauthorized Hacks . | . . Terminals . | . . Fabricators . | . . Repair Stations . | . . Recycling Units . | . . Scanalyzers . | . . Garrison Access . | . . Data Cores Recovered . | . . Used . | . . Hacking Detections 3 | . 3 Full Trace Events . | . . Feedback Events . | . . Feedback Blocked . | . . Robot Schematics Acquired . | . . Robots Built . | . . Authchips . | . . Time . | . . Total Robot Build Rating . | . . Part Schematics Acquired . | . . Parts Built . | . . Authchips . | . . Time . | . . Total Part Build Rating . | . . Part Studies Acquired . | . . Parts Repaired . | . . Time . | . . Parts Recycled . | . . Recycled Matter . | . . Retrieved Matter . | . . Retrieved Components . | . . Parts Scanalyzed . | . . Part Schematics Acquired . | . . Parts Damaged . | . . Bothacking | -11 -10 ------------ Run | Yrd Mat Used RIF Installer . | . . Robots Hacked . | . . Non-combat . | . . Combat . | . . Robot Hacks Applied . | . . Relay Couplers Released . | . . Fabnet Peak Effective % . | . . Robots Rewired . | . . Allies Hacked . | . . Hacks Repelled . | . . Allies | -11 -10 -------- Run | Yrd Mat Total Allies . | . . Largest Group . | . . Highest-Rated Group . | . . Highest-Rated Ally . | . . Total Orders . | . . Ally Attacks . | . . Total Damage . | . . Kills . | . . Allies Corrupted . | . . Allies Melted . | . . Intel | -11 -10 ------- Run | Yrd Mat Active Infowar (turns) . | . . Robot Analysis Total . | . . Derelict Logs Recovered . | . . Drone Launches . | . . Drone Recoveries . | . . Exploration | -11 -10 ------------- Run | Yrd Mat Turns Passed 490 | 192 298 Spaces Moved 313 | 116 197 Core 2 | 2 . Treads . | . . Legs 311 | 114 197 Wheels . | . . Hover . | . . Flight . | . . Fastest Speed 50 | 50 120 Average Speed 119 | 118 120 Slowest Speed 120 | 120 120 Overloaded Moves . | . . Propulsion Burnouts . | . . Robots Hopped . | . . Potential Cave-ins 3 | . 3 Cave-ins Triggered 2 | . 2 Exploration Rate (%) 18 | 4 33 Regions Visited 1 Branch Regions . Pre-discovered Areas . | . . Known Exits Taken . | . . Unknown Exits Taken 1 | 1 . Scrap Searched . | . . Spaces Dug 6 | . 6 Terrain Destroyed 44 | . 44 Melee . | . . Projectile 6 | . 6 AOE 38 | . 38 Terrain Rammed . | . . Walls Destroyed . | . . Machines Disabled . | . . Actions | -11 -10 --------- Run | Yrd Mat Total 365 | 143 222 Wait 8 | 5 3 Move 312 | 115 197 Hop . | . . Pick Up 10 | 7 3 Fast Attach 4 | 4 . Attach 3 | 2 1 Detach 1 | . 1 Swap 4 | 2 2 Drop . | . . Fire 23 | 8 15 Melee . | . . Ram . | . . Kick . | . . Crush . | . . Escape Stasis . | . . Rewire . | . . Trap . | . . Miscellaneous . | . . Route ------- -11/Scrapyard -10/Materials (discovered 1 exit: [*Mat]) History --------- Turn | Location | Event 39 | -11/Scrapyard | Discovered new exit (range 16) 193 | -11/Scrapyard | Entered Materials 307 | -10/Materials | Discovered new exit (range 10) 308 | -10/Materials | Build established: Mutant 480 | -10/Materials | Crushed by falling debris 492 | -10/Materials | Crushed by falling debris 492 | -10/Materials | Smashed by cave-in Last Messages --------------- 00427_ U-05 Engineer builds a Wall. 00427_ U-05 Engineer lays Concrete. 00429_ U-05 Engineer builds a Wall. 00430_ The unstable cave ceiling collapses. 00433_ U-05 Engineer lays Concrete. 00435_ U-05 Engineer builds a Wall. 00435_ U-05 Engineer lays Concrete. 00437_ U-05 Engineer builds a Wall. 00437_ U-05 Engineer lays Concrete. 00444_ U-05 Engineer builds a Wall. 00449_ U-05 Engineer lays Concrete. 00454_ U-05 Engineer builds a Wall. 00480_ The unstable cave ceiling collapses. 00480_ Crushed by falling debris. 00492_ The unstable cave ceiling collapses. 00492_ Crushed by falling debris. 00492_ Aluminum Leg destroyed. 00492_ System corrupted by crushing effect (+5). 00492_ Mining Laser destroyed. 00492_ System corrupted by crushing effect (+4). Map ----- +----------------------------------------------------+ | | | | | | | | | | | | | | | | | | | | | | | | | ???????????????????????????????????????????? | | ???????????????????????????????????????????? | | ???????????????????????????????????????????? | | ???????????????????????????????????????????? | | ???????????????????????????????????????????? | | ???????????????????????????????????????????? | | ???????????????????????????????????????????? | | ???????????????????????????????????????????? | | ######????########?????????????????????????? | | # """ ????# #?????????????????????????? | | # "T" ####""" #?????????????????????????? | | # # #""" ####??????????????????????? | | # # #""" ## #??????????????????????? | | # + + # @#??????????????????????? | | # # # # ##??!???????????????????? | | ?####### #########????????????????????????? | | ?????## ## ##????????????????????????? | | ?????## # #????????????????????????? | | ????# #! [###????????????????????????? | | ????### ###* # #######??????????????????? | | ?????###=##### # !#??????????????????? | | ??????##%#### #??????????????????? | | ??????##[#??## | #??????????????????? | | ??????## ##### ## ######????????????????!?? | | ???#####+# # ###########???????????????? | | ???# # ########????????? | | ???# %= # T + #????????? | | ???# [ # ######## ## #????????? | | ???# ##+######???# #? ! #????????? | | ???# # ! #???# #?? #????????? | | ???# / T #???# #?? [ #????????? | | ???# =!! # """ #??## ##?? +????????? | | ???# "!%! # """ #??# #?? #????????? | | ???# !!= ! # """ #??# #???###????????? | | ???#####/######+#####??# T #??????????????? | | ????# #???# #??????????????? | | ????# < #???## ###??????????????? | | ????# #????# #????????????????? | +----------------------------------------------------+ Best States ------------- Heat Dissipation 25 Energy Generation 10 Energy Capacity 250 Matter Stores 300 Matter Capacity 300 Sight Range 16 Terrain Scan Density 10 Evasion (%) 55 Item Schematics ----------------- None Robot Schematics ------------------ None Fabricated ------------ Nothing Repaired ---------- Nothing Studied --------- None Alien Tech Used ----------------- None Achievements -------------- None Challenges ------------ None Game ------ Seed HybridFactoryCutter Manual? 0 Play Time 00:08:43 Cumulative 7.9 hours Start 2026.07.20 @ 19:57:37 End 2026.07.20 @ 20:04:57 Sessions 1 Manual Loads 0 Difficulty Rogue Special Mode None Game No. 7 Rogue 7 Adventurer 0 Explorer 0 Win Type - Total 0 Types 0/0/0/0/0/0/0/0/0/0 Lore% 4 Gallery% 6 Achievement% 10 Wizard Run 0 Options --------- Layout 2 ASCII 0 Keyboard 0 Movement Mouse Keybinds 1 Fullscreen 1 Font 24/Terminus Map View 50x44 Zoom Use 0% Tactical HUD 1 Map Filters NONE Filters NONE Steam 1 RUN: 037bdb3d-7d87-437e-b5bd-4238fa59f2ca